fUST/lending_fUST_20250929
["ID","MTS","AMOUNT","RATE_DAILY","PERIOD"]
[388339083,1759105838373,-1000.0,0.00025914,2]
[388339084,1759105838383,-1000.0,0.00025914,2]
[388339085,1759105838392,-1000.0,0.00025914,2]
[388339087,1759105838401,-1000.0,0.00025914,2]
[388339089,1759105838411,-1000.0,0.00025914,2]
[388339091,1759105838421,-1000.0,0.00025914,2]
[388339093,1759105838430,-1000.0,0.00025914,2]
[388339095,1759105838439,-1000.0,0.00025914,2]
[388339097,1759105838448,-1000.0,0.00025914,2]
[388339099,1759105838458,-1000.0,0.00025914,2]
[388339101,1759105838467,-151.0,0.00025914,2]
[388339103,1759105838476,-1000.0,0.00025914,2]
[388339105,1759105838485,-1000.0,0.00025914,2]
[388339107,1759105838494,-151.0,0.00025914,2]
[388339109,1759105838503,-1000.0,0.00025914,2]
[388339111,1759105838512,-1000.0,0.00025914,2]
[388339113,1759105838523,-151.0,0.00025914,2]
[388339115,1759105838532,-500.0,0.00025914,2]
[388339117,1759105838542,-151.0,0.00025914,2]
[388339119,1759105838552,-500.0,0.00025914,2]
[388339121,1759105838563,-500.0,0.00025914,2]
[388339124,1759105838573,-151.0,0.00025914,2]
[388339125,1759105838583,-151.0,0.00025914,2]
[388339128,1759105838592,-500.0,0.00025914,2]
[388339130,1759105838604,-153.83490903,0.00025914,2]
[388339131,1759105838613,-151.0,0.00025914,2]
[388339133,1759105838624,-500.0,0.00025914,2]
[388339135,1759105838633,-151.0,0.00025914,2]
[388339137,1759105838642,-500.0,0.00025914,2]
[388339139,1759105838652,-267.85194047,0.00025914,2]
[388339141,1759105838661,-500.0,0.00025914,2]
[388339143,1759105838671,-500.0,0.00025914,2]
[388339145,1759105838680,-151.0,0.00025914,2]
[388339147,1759105838689,-998.87,0.00025919,3]
[388339149,1759105838699,-499.44,0.00025919,3]
[388339154,1759105838731,-249.72,0.00025919,3]
[388339156,1759105838741,-749.18,0.00025919,3]
[388339158,1759105838751,-500.0,0.00025921,2]
[388339160,1759105838760,-500.0,0.00025921,2]
[388339162,1759105838769,-151.0,0.00025921,2]
[388339164,1759105838780,-500.0,0.00025921,2]
[388339166,1759105838789,-151.0,0.00025921,2]
[388339168,1759105838798,-151.0,0.00025921,2]
[388339170,1759105838808,-167.64638775,0.00025921,2]
[388339172,1759105838818,-500.0,0.00025921,2]
[388339174,1759105838828,-151.0,0.00025921,2]
[388339175,1759105838838,-37374.2689503,0.00025929,2]
[388339176,1759105838847,-160.0,0.00025938,2]
[388339177,1759105838858,-500.0,0.00025939,2]
[388339178,1759105838867,-151.0,0.00025939,2]
[388339180,1759105838877,-500.0,0.00025939,2]
[388339182,1759105838886,-500.0,0.00025939,2]
[388339184,1759105838896,-151.0,0.00025939,2]
[388339185,1759105838905,-151.0,0.00025939,2]
[388339186,1759105838914,-500.0,0.00025939,2]
[388339187,1759105838923,-1046.0,0.00025939,2]
[388339188,1759105838932,-151.0,0.00025939,2]
[388339189,1759105838941,-151.0,0.00025939,2]
[388339190,1759105838951,-151.0,0.00025939,2]
[388339192,1759105838961,-151.0,0.00025939,2]
[388339194,1759105838970,-151.56241802,0.00025939,2]
[388339196,1759105838980,-151.0,0.00025939,2]
[388339197,1759105838989,-500.0,0.00025939,2]
[388339198,1759105838999,-151.34192869,0.00025939,2]
[388339199,1759105839010,-230.65981031,0.00025939,2]
[388339200,1759105839019,-276.68408791,0.00025939,2]
[388339201,1759105839030,-151.0,0.00025939,2]
[388339202,1759105839040,-500.0,0.00025939,2]
[388339203,1759105839050,-151.0,0.00025939,2]
[388339205,1759105839060,-151.0,0.00025939,2]
[388339207,1759105839070,-500.0,0.00025939,2]
[388339208,1759105839080,-500.0,0.00025939,2]
[388339210,1759105839090,-500.0,0.00025939,2]
[388339211,1759105839100,-152.64669421,0.00025989,2]
[388339212,1759105839110,-275.90176252,0.00025989,2]
[388339213,1759105839121,-496.62317253,0.00025989,2]
[388339214,1759105839132,-882.88564006,0.00025989,2]
[388339215,1759105839142,-1379.5088126,0.00025989,2]
[388339216,1759105839152,-1986.49269014,0.00025989,2]
[388339217,1759105839163,-349.16421374,0.00025989,2]
[388339218,1759105839172,-628.49558474,0.00025989,2]
[388339219,1759105839183,-1117.32548398,0.00025989,2]
[388339220,1759105839194,-1745.82106872,0.00025989,2]
[388339221,1759105839204,-2513.98233896,0.00025989,2]
[388339222,1759105839218,-3421.80929469,0.00025989,2]
[388339223,1759105839229,-252.04030135,0.00025989,2]
[388339224,1759105839239,-288.04605869,0.00025989,2]
[388339225,1759105839250,-450.0719667,0.00025989,2]
[388339226,1759105839260,-647.45552842,0.00025989,2]
[388339227,1759105839270,-274.76404957,0.00025989,2]
[388339228,1759105839280,-488.46942146,0.00025999,2]
[388339229,1759105839293,-9010.51443984,0.00026,2]
[388339230,1759105839303,-1671.26139,0.00026,30]
[388339231,1759105839313,-500.0,0.00026195,2]
[388339232,1759105839323,-500.0,0.00026195,2]
[388339233,1759105839334,-151.0,0.00026195,2]
[388339234,1759105839343,-500.0,0.00026195,2]
[388339235,1759105839353,-151.0,0.00026195,2]
[388339236,1759105839363,-226.50503237,0.00026195,2]
[388339237,1759105839373,-500.0,0.00026195,2]
[388339238,1759105839382,-500.0,0.00026213,2]
[388339239,1759105839391,-151.0,0.00026213,2]
[388339240,1759105839401,-543.96086038,0.00026213,2]
[388339241,1759105839410,-500.0,0.00026213,2]
[388339242,1759105839420,-151.0,0.00026213,2]
[388339243,1759105839430,-151.0,0.00026213,2]
[388339244,1759105839440,-501.60104652,0.00026213,2]
[388339245,1759105839449,-1046.0,0.00026213,2]
[388339246,1759105839458,-151.0,0.00026213,2]
[388339247,1759105839468,-200.66754909,0.00026213,2]
[388339248,1759105839477,-151.0,0.00026213,2]
[388339249,1759105839487,-151.0,0.00026213,2]
[388339250,1759105839496,-151.0,0.00026213,2]
[388339251,1759105839505,-500.0,0.00026213,2]
[388339252,1759105839515,-500.0,0.00026213,2]
[388339253,1759105839526,-255.60759689,0.00026213,2]
[388339254,1759105839535,-500.0,0.00026213,2]
[388339255,1759105839544,-500.0,0.00026213,2]
[388339256,1759105839554,-500.0,0.00026213,2]
[388339257,1759105839564,-2457.0028979,0.00026427,2]
[388339258,1759105839574,-763.23347103,0.00026431,2]
[388339259,1759105839583,-151.0,0.00026462,2]
[388339260,1759105839592,-154.735933,0.00026469,2]
[388339261,1759105839603,-500.0,0.00026469,2]
[388339263,1759105839612,-151.0,0.00026469,2]
[388339264,1759105839621,-500.0,0.00026469,2]
[388339265,1759105839631,-152.03454993,0.00026469,2]
[388339266,1759105839641,-526.97284881,0.00026469,2]
[388339267,1759105839650,-446.15910174,0.00026487,2]
[388339268,1759105839660,-151.0,0.00026487,2]
[388339269,1759105839670,-500.0,0.00026487,2]
[388339271,1759105839701,-151.0,0.00026487,2]
[388339272,1759105839710,-184.8414267,0.00026487,2]
[388339273,1759105839721,-1046.0,0.00026487,2]
[388339274,1759105839730,-198.000002,0.00026487,2]
[388339275,1759105839740,-279.54797029,0.00026487,2]
[388339276,1759105839749,-151.0,0.00026487,2]
[388339277,1759105839758,-257.00010924,0.00026487,2]
[388339278,1759105839767,-500.0,0.00026487,2]
[388339279,1759105839777,-500.0,0.00026487,2]
[388339280,1759105839786,-500.0,0.00026487,2]
[388339281,1759105839795,-500.0,0.00026487,2]
[388339282,1759105839805,-500.0,0.00026487,2]
[388339283,1759105839814,-37374.2689503,0.00026517,2]
[388339284,1759105839823,-223.82781145,0.00026527,2]
[388339285,1759105839838,-255.80321309,0.00026527,2]
[388339286,1759105839847,-399.69252045,0.00026527,2]
[388339287,1759105839857,-574.98167222,0.00026527,2]
[388339288,1759105839866,-254.38970866,0.00026527,2]
[388339289,1759105839876,-457.90147559,0.00026527,2]
[388339290,1759105839885,-814.04706772,0.00026527,2]
[388339291,1759105839895,-1271.94854332,0.00026527,2]
[388339292,1759105839905,-1829.77429648,0.00026527,2]
[388339293,1759105839914,-201.0,0.00026603,21]
[388339294,1759105839924,-604.0,0.00026743,2]
[388339295,1759105839933,-153.66096207,0.00026743,2]
[388339296,1759105839943,-500.0,0.00026743,2]
[388339297,1759105839952,-164.35976643,0.00026761,2]
[388339298,1759105839962,-500.0,0.00026761,2]
[388339299,1759105839971,-151.0,0.00026761,2]
[388339300,1759105839981,-1046.0,0.00026761,2]
[388339301,1759105839991,-151.0,0.00026761,2]
[388339302,1759105840001,-500.0,0.00026761,2]
[388339303,1759105840011,-500.0,0.00026761,2]
[388339304,1759105840020,-500.0,0.00026761,2]
[388339305,1759105840031,-500.0,0.00026761,2]
[388339306,1759105840040,-500.0,0.00026761,2]
[388339307,1759105840050,-312.06099068,0.00026806,2]
[388339308,1759105840061,-338.87964892,0.00026933,2]
[388339309,1759105840070,-151.0,0.0002701,2]
[388339310,1759105840079,-500.0,0.00027017,2]
[388339311,1759105840088,-500.0,0.00027035,2]
[388339312,1759105840097,-1046.0,0.00027035,2]
[388339313,1759105840107,-500.0,0.00027035,2]
[388339314,1759105840117,-500.0,0.00027035,2]
[388339315,1759105840127,-500.0,0.00027035,2]
[388339316,1759105840136,-363.27281064,0.00027035,2]
[388339317,1759105840146,-500.0,0.00027035,2]
[388339318,1759105840155,-37374.2689503,0.00027271,2]
[388339319,1759105840164,-2457.0028979,0.00027273,2]
[388339320,1759105840174,-1997.74,0.00027289,3]
[388339321,1759105840183,-998.88,0.00027289,3]
[388339322,1759105840193,-499.44,0.00027289,3]
[388339323,1759105840203,-500.0,0.00027291,2]
[388339324,1759105840217,-420.0,0.00027294,2]
[388339325,1759105840227,-420.0,0.00027294,2]
[388339326,1759105840239,-500.0,0.00027296,2]
[388339327,1759105840248,-500.0,0.00027296,2]
[388339328,1759105840258,-500.0,0.00027296,2]
[388339329,1759105840267,-500.0,0.00027296,2]
[388339330,1759105840276,-500.0,0.00027296,2]
[388339331,1759105840287,-500.0,0.00027296,2]
[388339332,1759105840297,-500.0,0.00027296,2]
[388339333,1759105840307,-151.0,0.00027296,2]
[388339334,1759105840317,-500.0,0.00027296,2]
[388339335,1759105840327,-500.0,0.00027296,2]
[388339336,1759105840336,-338.87964892,0.00027297,2]
[388339337,1759105840345,-2737.07889756,0.000273,2]
[388339338,1759105840354,-1129144.20956329,0.000273,2]
[388339339,1759105840364,-500.0,0.00027309,2]
[388339340,1759105840373,-1046.0,0.00027309,2]
[388339341,1759105840383,-268.14159216,0.00027309,2]
[388339342,1759105840392,-500.0,0.00027309,2]
[388339343,1759105840401,-610.61497071,0.00027309,2]
[388339344,1759105840411,-500.0,0.00027309,2]
[388339345,1759105840420,-3011.28794333,0.00027346,2]
[388339346,1759105840430,-37374.2689503,0.00027359,2]
[388339347,1759105840439,-2794.8425197,0.00027369,2]
[388339348,1759105840448,-69678.2974623,0.00027369,2]
[388339349,1759105840458,-346.36351345,0.00027371,2]
[388339350,1759105840467,-245.64999477,0.00027371,2]
[388339351,1759105840476,-383.44428871,0.00027371,2]
[388339352,1759105840486,-112122.806851,0.00027387,2]
[388339353,1759105840495,-200.0,0.00027396,2]
[388339354,1759105840505,-155.0,0.00027396,2]
[388339355,1759105840516,-213.11827606,0.00027397,7]
[388339356,1759105840526,-480.0,0.00027397,7]
[388339357,1759105840535,-480.0,0.00027397,7]
[388339358,1759105840546,-572.1,0.00027397,7]
[388339359,1759105840556,-480.0,0.00027397,7]
[388339360,1759105840566,-480.0,0.00027397,7]
[388339361,1759105840576,-480.0,0.00027397,7]
[388339362,1759105840586,-675.64,0.00027397,7]
[388339363,1759105840595,-480.0,0.00027397,7]
[388339364,1759105840605,-488.11314074,0.00027397,7]
[388339365,1759105840615,-480.0,0.00027397,7]
[388339366,1759105840625,-502.91,0.00027397,7]
[388339367,1759105840634,-480.0,0.00027397,7]
[388339368,1759105840644,-778.4,0.00027397,7]
[388339369,1759105840653,-745.97,0.00027397,7]
[388339370,1759105840663,-576.33,0.00027397,7]
[388339371,1759105840672,-480.0,0.00027397,7]
[388339372,1759105840682,-761.7905987,0.00027397,2]
[388339373,1759105840692,-480.0,0.00027397,7]
[388339374,1759105840701,-480.0,0.00027397,7]
[388339375,1759105840711,-10541.5993108,0.00027397,2]
[388339376,1759105840720,-480.0,0.00027397,7]
[388339377,1759105840729,-520.15000693,0.00027397,7]
[388339378,1759105840739,-400.0,0.00027397,7]
[388339379,1759105840748,-480.0,0.00027397,7]
[388339380,1759105840758,-480.0,0.00027397,7]
[388339381,1759105840767,-480.0,0.00027397,7]
[388339382,1759105840779,-214.74978762,0.00027397,7]
[388339383,1759105840788,-1118.82,0.00027397,7]
[388339384,1759105840797,-515.61,0.00027397,7]
[388339385,1759105840807,-480.0,0.00027397,7]
[388339386,1759105840816,-285.40543916,0.00027397,7]
[388339387,1759105840826,-640.88,0.00027397,7]
[388339388,1759105840835,-151.0,0.00027397,7]
[388339389,1759105840845,-480.0,0.00027397,7]
[388339390,1759105840854,-158.0825949,0.00027397,7]
[388339391,1759105840864,-480.0,0.00027397,7]
[388339392,1759105840874,-480.0,0.00027397,7]
[388339393,1759105840883,-862.15,0.00027397,7]
[388339394,1759105840893,-480.0,0.00027397,7]
[388339395,1759105840903,-480.0,0.00027397,7]
[388339396,1759105840912,-480.0,0.00027397,7]
[388339397,1759105840922,-480.0,0.00027397,7]
[388339398,1759105840932,-605.47,0.00027397,7]
[388339399,1759105840941,-596.42,0.00027397,7]
[388339400,1759105840951,-1027.46,0.00027397,7]
[388339401,1759105840961,-480.0,0.00027397,7]
[388339402,1759105840971,-480.0,0.00027397,7]
[388339403,1759105840980,-480.0,0.00027397,7]
[388339404,1759105840989,-480.0,0.00027397,7]
[388339405,1759105840998,-480.0,0.00027397,7]
[388339406,1759105841009,-480.0,0.00027397,7]
[388339407,1759105841018,-480.0,0.00027397,7]
[388339408,1759105841028,-480.0,0.00027397,7]
[388339409,1759105841037,-1713.44,0.00027397,7]
[388339410,1759105841046,-487.0,0.00027397,7]
[388339411,1759105841055,-480.0,0.00027397,7]
[388339412,1759105841064,-480.0,0.00027397,7]
[388339413,1759105841074,-480.0,0.00027397,7]
[388339414,1759105841083,-681.72,0.00027397,7]
[388339415,1759105841092,-480.0,0.00027397,7]
[388339416,1759105841101,-593.69092592,0.00027397,7]
[388339417,1759105841111,-480.0,0.00027397,7]
[388339418,1759105841121,-672.86,0.00027397,7]
[388339419,1759105841130,-514.4,0.00027397,7]
[388339420,1759105841140,-681.24,0.00027397,7]
[388339421,1759105841151,-480.0,0.00027397,7]
[388339422,1759105841161,-480.0,0.00027397,7]
[388339423,1759105841171,-419.43368911,0.00027397,7]
[388339424,1759105841180,-480.0,0.00027397,7]
[388339425,1759105841190,-480.0,0.00027397,7]
[388339426,1759105841199,-480.0,0.00027397,7]
[388339427,1759105841211,-480.0,0.00027397,7]
[388339428,1759105841221,-299.4561782,0.00027397,7]
[388339429,1759105841231,-200.0,0.00027397,7]
[388339430,1759105841240,-170.55344354,0.00027397,7]
[388339431,1759105841249,-480.0,0.00027397,7]
[388339432,1759105841258,-480.0,0.00027397,7]
[388339433,1759105841268,-649.55,0.00027397,7]
[388339434,1759105841277,-480.0,0.00027397,7]
[388339435,1759105841289,-480.0,0.00027397,7]
[388339436,1759105841298,-641.2,0.00027397,7]
[388339437,1759105841307,-579.62,0.00027397,7]
[388339438,1759105841316,-480.0,0.00027397,7]
[388339439,1759105841325,-480.0,0.00027397,7]
[388339440,1759105841334,-706.75,0.00027397,7]
[388339441,1759105841343,-515.56,0.00027397,7]
[388339442,1759105841353,-1685.04,0.00027397,7]
[388339443,1759105841362,-480.0,0.00027397,7]
[388339444,1759105841372,-480.0,0.00027397,7]
[388339445,1759105841382,-723.2,0.00027397,7]
[388339446,1759105841391,-480.0,0.00027397,7]
[388339447,1759105841401,-480.0,0.00027397,7]
[388339448,1759105841410,-480.0,0.00027397,7]
[388339449,1759105841419,-480.0,0.00027397,7]
[388339450,1759105841429,-480.0,0.00027397,7]
[388339451,1759105841439,-731.51,0.00027397,7]
[388339452,1759105841449,-480.0,0.00027397,7]
[388339453,1759105841460,-546.43,0.00027397,7]
[388339454,1759105841640,-480.0,0.00027397,7]
[388339455,1759105841649,-480.0,0.00027397,7]
[388339456,1759105841658,-480.0,0.00027397,7]
[388339457,1759105841668,-1993.37,0.00027397,7]
[388339458,1759105841678,-616.6,0.00027397,7]
[388339459,1759105841687,-618.42,0.00027397,7]
[388339460,1759105841696,-480.0,0.00027397,7]
[388339461,1759105841705,-480.0,0.00027397,7]
[388339462,1759105841714,-594.57,0.00027397,7]
[388339463,1759105841724,-480.0,0.00027397,7]
[388339464,1759105841733,-480.0,0.00027397,7]
[388339465,1759105841743,-480.0,0.00027397,7]
[388339466,1759105841752,-480.0,0.00027397,7]
[388339467,1759105841761,-480.0,0.00027397,7]
[388339468,1759105841771,-623.72,0.00027397,7]
[388339469,1759105841780,-709.81,0.00027397,7]
[388339470,1759105841789,-749.65,0.00027397,7]
[388339471,1759105841798,-480.0,0.00027397,7]
[388339472,1759105841807,-720.75,0.00027397,7]
[388339473,1759105841816,-480.0,0.00027397,7]
[388339474,1759105841825,-661.05,0.00027397,7]
[388339475,1759105841835,-480.0,0.00027397,7]
[388339476,1759105841844,-699.22,0.00027397,7]
[388339477,1759105841852,-480.0,0.00027397,7]
[388339478,1759105841863,-480.0,0.00027397,7]
[388339479,1759105841873,-520.0,0.00027397,3]
[388339480,1759105841883,-520.96,0.00027397,7]
[388339481,1759105841893,-643.57,0.00027397,7]
[388339482,1759105841902,-500.0,0.00027397,7]
[388339483,1759105841911,-255.43979926,0.00027397,7]
[388339484,1759105841920,-480.0,0.00027397,7]
[388339485,1759105841930,-480.0,0.00027397,7]
[388339486,1759105841939,-606.55989632,0.00027397,7]
[388339487,1759105841949,-480.0,0.00027397,7]
[388339488,1759105841958,-172.29318664,0.00027397,7]
[388339489,1759105841968,-160.0,0.00027397,2]
[388339490,1759105841977,-480.0,0.00027397,7]
[388339491,1759105841986,-496.37,0.00027397,7]
[388339492,1759105841995,-480.0,0.00027397,7]
[388339493,1759105842004,-480.0,0.00027397,7]
[388339494,1759105842012,-480.0,0.00027397,7]
[388339495,1759105842021,-480.0,0.00027397,7]
[388339496,1759105842030,-480.0,0.00027397,7]
[388339497,1759105842040,-480.0,0.00027397,7]
[388339498,1759105842048,-480.0,0.00027397,7]
[388339499,1759105842058,-480.0,0.00027397,7]
[388339500,1759105842067,-480.0,0.00027397,7]
[388339501,1759105842077,-480.0,0.00027397,7]
[388339502,1759105842086,-480.0,0.00027397,7]
[388339503,1759105842095,-480.0,0.00027397,7]
[388339504,1759105842106,-807.61,0.00027397,7]
[388339505,1759105842118,-480.0,0.00027397,7]
[388339506,1759105842127,-480.0,0.00027397,7]
[388339507,1759105842137,-480.0,0.00027397,7]
[388339508,1759105842147,-480.0,0.00027397,7]
[388339509,1759105842157,-480.0,0.00027397,7]
[388339510,1759105842166,-480.0,0.00027397,7]
[388339511,1759105842175,-480.0,0.00027397,7]
[388339512,1759105842185,-480.0,0.00027397,7]
[388339513,1759105842194,-480.0,0.00027397,7]
[388339514,1759105842203,-480.0,0.00027397,7]
[388339515,1759105842218,-480.0,0.00027397,7]
[388339516,1759105842227,-568.15,0.00027397,7]
[388339517,1759105842236,-471.52980692,0.00027397,7]
[388339518,1759105842246,-872.64,0.00027397,7]
[388339519,1759105842257,-480.0,0.00027397,7]
[388339520,1759105842266,-436.25388574,0.00027397,7]
[388339521,1759105842275,-480.0,0.00027397,7]
[388339522,1759105842284,-663.06,0.00027397,7]
[388339523,1759105842294,-480.0,0.00027397,7]
[388339524,1759105842303,-607.02,0.00027397,7]
[388339525,1759105842312,-538.9,0.00027397,7]
[388339526,1759105842321,-732.17,0.00027397,7]
[388339527,1759105842330,-577.08,0.00027397,7]
[388339528,1759105842339,-480.0,0.00027397,7]
[388339529,1759105842349,-480.0,0.00027397,7]
[388339530,1759105842359,-480.0,0.00027397,7]
[388339531,1759105842368,-480.0,0.00027397,7]
[388339532,1759105842377,-480.0,0.00027397,7]
[388339533,1759105842387,-480.0,0.00027397,7]
[388339534,1759105842397,-480.0,0.00027397,7]
[388339535,1759105842407,-750.96,0.00027397,7]
[388339536,1759105842416,-737.78,0.00027397,7]
[388339537,1759105842426,-248.50770926,0.00027397,7]
[388339538,1759105842436,-480.0,0.00027397,7]
[388339539,1759105842445,-910.49,0.00027397,7]
[388339540,1759105842454,-595.31,0.00027397,7]
[388339541,1759105842463,-480.0,0.00027397,7]
[388339542,1759105842473,-793.75,0.00027397,7]
[388339543,1759105842482,-480.0,0.00027397,7]
[388339544,1759105842492,-500.0,0.00027397,7]
[388339545,1759105842501,-688.99,0.00027397,7]
[388339546,1759105842510,-2261.36,0.00027397,7]
[388339547,1759105842520,-480.0,0.00027397,7]
[388339548,1759105842529,-521.77,0.00027397,7]
[388339549,1759105842538,-487.78,0.00027397,7]
[388339550,1759105842550,-480.0,0.00027397,7]
[388339551,1759105842560,-338.65923869,0.00027397,7]
[388339552,1759105842569,-894.2,0.00027397,7]
[388339553,1759105842578,-480.0,0.00027397,7]
[388339554,1759105842587,-480.0,0.00027397,7]
[388339555,1759105842596,-480.0,0.00027397,7]
[388339556,1759105842605,-557.71,0.00027397,7]
[388339557,1759105842614,-482.7642323,0.00027397,7]
[388339558,1759105842623,-480.0,0.00027397,7]
[388339559,1759105842633,-480.0,0.00027397,7]
[388339560,1759105842642,-480.0,0.00027397,7]
[388339561,1759105842651,-480.0,0.00027397,7]
[388339562,1759105842659,-480.0,0.00027397,7]
[388339563,1759105842669,-490.21,0.00027397,7]
[388339564,1759105842678,-480.0,0.00027397,7]
[388339565,1759105842687,-480.0,0.00027397,7]
[388339566,1759105842696,-802.02,0.00027397,7]
[388339567,1759105842705,-751.76,0.00027397,7]
[388339568,1759105842714,-677.45,0.00027397,7]
[388339569,1759105842724,-480.0,0.00027397,7]
[388339570,1759105842733,-895.2,0.00027397,7]
[388339571,1759105842742,-1187.12,0.00027397,7]
[388339572,1759105842752,-480.0,0.00027397,7]
[388339574,1759105842761,-480.0,0.00027397,7]
[388339576,1759105842771,-482.83944865,0.00027397,7]
[388339578,1759105842780,-480.0,0.00027397,7]
[388339579,1759105842790,-746.21,0.00027397,7]
[388339580,1759105842800,-957.81,0.00027397,7]
[388339581,1759105842809,-480.0,0.00027397,7]
[388339582,1759105842818,-480.0,0.00027397,7]
[388339583,1759105842827,-1058.71,0.00027397,7]
[388339584,1759105842836,-480.0,0.00027397,7]
[388339585,1759105842846,-612.92512663,0.00027397,7]
[388339587,1759105842856,-480.0,0.00027397,7]
[388339589,1759105842866,-480.0,0.00027397,7]
[388339591,1759105842876,-699.9,0.00027397,7]
[388339592,1759105842887,-859.96,0.00027397,7]
[388339593,1759105842896,-821.96,0.00027397,7]
[388339594,1759105842906,-480.0,0.00027397,7]
[388339595,1759105842916,-480.0,0.00027397,7]
[388339596,1759105842925,-480.0,0.00027397,7]
[388339597,1759105842935,-844.77,0.00027397,7]
[388339598,1759105842945,-610.61,0.00027397,7]
[388339599,1759105842954,-480.0,0.00027397,7]
[388339600,1759105842964,-480.0,0.00027397,7]
[388339601,1759105842974,-675.37,0.00027397,7]
[388339602,1759105842983,-2335.09,0.00027397,7]
[388339603,1759105842992,-559.25,0.00027397,7]
[388339604,1759105843002,-480.0,0.00027397,7]
[388339605,1759105843011,-480.0,0.00027397,7]
[388339606,1759105843019,-1519.01,0.00027397,7]
[388339607,1759105843029,-298.11962964,0.00027397,7]
[388339608,1759105843038,-480.0,0.00027397,7]
[388339609,1759105843047,-1238.8,0.00027397,7]
[388339610,1759105843056,-480.0,0.00027397,7]
[388339611,1759105843065,-480.0,0.00027397,7]
[388339612,1759105843074,-628.11,0.00027397,7]
[388339613,1759105843082,-480.0,0.00027397,7]
[388339614,1759105843092,-714.06,0.00027397,7]
[388339615,1759105843101,-480.0,0.00027397,7]
[388339616,1759105843111,-480.0,0.00027397,7]
[388339617,1759105843120,-573.76,0.00027397,7]
[388339618,1759105843130,-480.0,0.00027397,7]
[388339619,1759105843139,-480.0,0.00027397,7]
[388339620,1759105843148,-730.62,0.00027397,7]
[388339621,1759105843157,-550.3,0.00027397,7]
[388339622,1759105843166,-480.0,0.00027397,7]
[388339623,1759105843175,-500.0,0.00027397,7]
[388339624,1759105843184,-270.50164049,0.00027397,7]
[388339625,1759105843193,-480.0,0.00027397,7]
[388339626,1759105843201,-480.0,0.00027397,7]
[388339627,1759105843216,-480.0,0.00027397,7]
[388339628,1759105843224,-1097.12,0.00027397,7]
[388339629,1759105843233,-739.74,0.00027397,7]
[388339630,1759105843242,-480.0,0.00027397,7]
[388339631,1759105843255,-2615.9,0.00027397,7]
[388339632,1759105843264,-480.0,0.00027397,7]
[388339633,1759105843273,-480.0,0.00027397,7]
[388339634,1759105843282,-530.44,0.00027397,7]
[388339635,1759105843292,-669.57,0.00027397,7]
[388339636,1759105843300,-480.0,0.00027397,7]
[388339637,1759105843309,-480.0,0.00027397,7]
[388339638,1759105843318,-742.0,0.00027397,7]
[388339639,1759105843327,-550.51,0.00027397,7]
[388339640,1759105843336,-1343.85,0.00027397,7]
[388339641,1759105843345,-2626.68,0.00027397,7]
[388339642,1759105843354,-856.4,0.00027397,7]
[388339643,1759105843364,-765.84,0.00027397,7]
[388339644,1759105843373,-480.0,0.00027397,7]
[388339645,1759105843381,-1676.42,0.00027397,7]